bitfinex/quotes_ETHUSD_20241130
["timestamp","ask_amount","ask_price","bid_price","bid_amount"]
[1732991713507,0.25332149,3672.8,3672.6,2.72279]
[1732991713715,0.55,3673.1,3672.5,2.60623076]
[1732991714051,0.55,3672.9,3672.5,5.32914076]
[1732991714252,0.25334365,3672.8,3672.5,5.32914076]
[1732991714454,3.27249,3673.1,3672.5,5.32914076]
[1732991714613,0.55,3672.9,3672.5,5.35636738]
[1732991714942,0.25336154,3672.8,3672.5,5.32914076]
[1732991715163,0.55,3673.1,3672.5,5.32914076]
[1732991715452,0.55,3673.1,3672.5,2.60623076]
[1732991715453,0.54116338,3672.7,3672.5,2.60623076]
[1732991715830,1.20301683,3672.6,3672.1,5.32944076]
[1732991716030,0.25331683,3672.5,3672.1,2.60623076]
[1732991716257,0.9497,3672.6,3672.1,2.60623076]
[1732991716568,0.55,3672.4,3672.1,2.60623076]
[1732991716865,0.55,3672.4,3671.9,2.72338]
[1732991717065,0.2533008,3672.3,3671.9,2.72338]
[1732991717216,0.55,3672.4,3671.9,2.72338]
[1732991717553,0.25329388,3672.3,3671.9,2.72338]
[1732991717768,0.55,3672.4,3671.9,2.72338]
[1732991717933,0.25329546,3672.3,3671.9,2.72338]
[1732991718135,0.55,3672.5,3671.9,2.72338]
[1732991718330,0.55,3672.3,3671.9,2.72338]
[1732991718516,0.55,3672.5,3671.9,2.72338]
[1732991718724,0.55,3672.3,3671.9,2.72338]
[1732991719139,0.55,3672.5,3671.9,2.72338]
[1732991719343,0.55,3672.3,3671.9,2.72338]
[1732991719599,0.55,3672.5,3672.0,2.72326]
[1732991719723,0.94641274,3672.7,3672.4,2.72301]
[1732991719926,0.80327989,3672.6,3672.5,2.72294]
[1732991720126,0.54116338,3672.7,3672.5,2.72294]
[1732991721876,0.54116338,3672.7,3672.4,3.50611]
[1732991721877,0.54116338,3672.7,3672.6,2.72286]
[1732991722021,0.55,3673.0,3672.8,2.7227]
[1732991722228,0.55,3673.1,3672.8,2.7227]
[1732991722472,0.253285,3673.0,3672.8,2.7227]
[1732991722697,0.55,3673.1,3672.8,2.7227]
[1732991722900,0.25330462,3673.0,3672.8,2.7227]
[1732991723201,0.55,3673.3,3672.6,2.72284]
[1732991723360,0.55,3673.1,3672.7,2.72274]
[1732991723559,0.9497,3672.8,3672.5,2.60623076]
[1732991723760,0.9497,3672.8,3672.4,2.72295]
[1732991723960,0.25328994,3672.7,3672.4,2.72295]
[1732991724195,0.9497,3672.8,3672.4,2.72295]
[1732991724402,0.25331043,3672.7,3672.5,2.72293]
[1732991724561,0.9497,3672.8,3672.5,2.72293]
[1732991724760,0.2533055,3672.7,3672.5,2.72293]
[1732991724989,0.9497,3672.8,3672.5,2.72293]
[1732991725173,0.25330555,3672.7,3672.5,2.72293]
[1732991725373,0.9497,3672.8,3672.2,3.0]
[1732991725603,0.25334897,3672.7,3672.6,2.72282]
[1732991725898,0.55,3672.8,3672.7,2.72279]
[1732991726100,0.80334902,3672.8,3672.5,5.32911076]
[1732991726317,0.25333543,3672.7,3672.5,5.32911076]
[1732991726516,0.55,3672.8,3672.5,5.32911076]
[1732991726811,0.25333036,3672.7,3672.5,5.32911076]
[1732991727019,0.55,3672.8,3672.5,5.32911076]
[1732991727218,0.25336226,3672.7,3672.5,5.32911076]
[1732991727424,0.55,3672.8,3672.5,5.32911076]
[1732991727919,0.55,3672.8,3672.2,3.0]
[1732991728217,0.55,3672.6,3672.3,2.72308]
[1732991728394,0.25336932,3672.5,3672.3,2.72308]
[1732991728589,0.55,3672.7,3672.3,2.72308]
[1732991728908,0.55,3672.5,3672.3,2.72308]
[1732991729084,0.25342035,3672.4,3672.3,2.72308]
[1732991729634,0.5506471,3672.9,3672.3,3.60664208]
[1732991729777,0.65902104,3672.8,3672.7,3.50589]
[1732991729984,0.25346963,3672.8,3672.7,3.50589]
[1732991730524,0.40557205,3673.4,3672.7,0.8103259]
[1732991730695,1.5974104,3673.3,3672.9,2.72262]
[1732991731023,0.65905302,3673.2,3673.1,2.72244]
[1732991731377,0.65905302,3673.2,3673.0,2.72255]
[1732991731694,0.65906241,3673.1,3673.0,2.72255]
[1732991731892,0.25348097,3673.1,3673.0,2.72255]
[1732991732103,0.72151084,3673.1,3673.0,2.72255]
[1732991732815,0.31592347,3673.1,3672.8,2.7227]
[1732991733039,0.80360009,3673.0,3672.8,2.7227]
[1732991733324,0.25360009,3672.9,3672.8,2.7227]
[1732991733619,0.25360009,3672.9,3672.6,5.32908076]
[1732991733620,0.65942775,3672.9,3672.6,5.32908076]
[1732991733920,0.25360009,3672.8,3672.6,5.32908076]
[1732991734106,0.61257799,3673.0,3672.6,5.32908076]
[1732991734309,0.61257799,3673.0,3672.0,2.72324]
[1732991734310,0.55,3672.8,3672.2,5.32937076]
[1732991734497,0.55,3672.6,3672.2,5.32937076]
[1732991734694,0.25366504,3672.7,3672.0,2.7233]
[1732991734695,0.55,3672.4,3672.0,2.7233]
[1732991735004,0.25366504,3672.3,3672.0,2.7233]
[1732991735193,1.13758701,3672.8,3672.5,3.50598]
[1732991735424,0.65962138,3672.7,3672.5,3.50598]
[1732991735578,0.25370053,3672.6,3672.4,2.72294]
[1732991735777,0.31585327,3672.5,3672.3,2.72308]
[1732991735982,0.25370053,3672.4,3672.3,3.33432108]
[1732991736210,0.55295998,3672.7,3672.3,3.33432108]
[1732991736414,0.80377338,3672.6,3672.5,2.72287]
[1732991736805,0.80376881,3672.6,3672.5,2.72287]
[1732991737966,0.25376881,3672.6,3672.5,2.72287]
[1732991738102,0.55295998,3672.7,3672.6,2.72286]
[1732991738422,1.35674163,3672.7,3672.6,5.72286]
[1732991739113,1.10295998,3672.7,3672.6,5.72286]
[1732991739810,1.35674102,3672.7,3672.6,5.72286]
[1732991740023,1.41870449,3672.7,3672.6,5.72286]
[1732991740324,1.4187285,3672.7,3672.6,5.72286]
[1732991740527,1.16492345,3672.7,3672.6,5.72286]
[1732991740698,1.10295998,3672.7,3672.6,5.72286]
[1732991741309,1.35676121,3672.7,3672.6,5.72286]
[1732991741510,1.41872468,3672.7,3672.6,5.72286]
[1732991742657,1.41872468,3672.7,3672.6,3.0]
[1732991742929,1.41872468,3672.7,3672.5,2.72287]
[1732991743130,0.25380123,3672.6,3672.5,2.72287]
[1732991743541,0.31555989,3672.6,3672.5,2.72287]
[1732991744598,0.31555989,3672.6,3672.3,2.72303]
[1732991744599,0.55,3672.5,3672.3,2.72303]
[1732991745118,0.61165452,3672.4,3672.3,5.72303]
[1732991745595,0.61165452,3672.4,3672.2,3.38933076]
[1732991745596,0.61165452,3672.4,3672.2,5.32938076]
[1732991745795,0.55,3672.3,3672.2,5.32938076]
[1732991745992,0.61172569,3672.3,3672.2,8.32938076]
[1732991746440,0.55,3672.3,3672.2,9.51283884]
[1732991746640,0.55295998,3672.7,3672.2,9.51283884]
[1732991746641,1.10295998,3672.7,3672.6,2.72286]
[1732991747012,1.16489394,3672.7,3672.6,2.72286]
[1732991747224,0.86889386,3672.7,3672.6,8.32909076]
[1732991747553,0.31593388,3672.7,3672.6,9.11099076]
[1732991747702,0.31593388,3672.7,3672.6,10.29439084]
[1732991747900,0.25399992,3672.7,3672.6,10.29439084]
[1732991748428,0.55,3673.0,3672.9,2.72259]
[1732991748595,2.54852632,3673.3,3672.9,2.72261]
[1732991748596,0.55,3673.2,3672.9,2.72261]
[1732991749252,0.55,3673.2,3672.7,2.75001487]
[1732991749457,0.55,3673.3,3673.0,2.72255]
[1732991749621,0.55,3673.1,3673.0,2.72255]
[1732991749951,1.96125031,3673.3,3673.0,2.72255]
[1732991750116,0.55,3673.1,3673.0,2.72255]
[1732991750658,0.61211993,3673.1,3673.0,2.72255]
[1732991750958,0.06211993,3673.1,3673.0,5.87602913]
[1732991751118,0.06211993,3673.1,3673.0,6.65792913]
[1732991751322,0.17022057,3673.4,3673.3,2.72234]
[1732991751628,0.22837552,3673.4,3673.3,2.72234]
[1732991751825,0.05815495,3673.4,3673.3,2.72234]
[1732991752036,1.70638052,3674.0,3673.6,2.72205]
[1732991752037,0.40661852,3673.7,3673.6,2.72205]
[1732991752234,0.66075543,3673.7,3673.6,2.72205]
[1732991752465,1.21075543,3673.7,3673.6,2.72205]
[1732991752817,0.55,3673.6,3673.5,2.72219]
[1732991753019,0.80413691,3673.6,3673.5,3.50409]
[1732991753652,0.80413691,3673.6,3673.5,2.72219]
[1732991754233,0.86044606,3673.6,3673.5,2.72219]
[1732991761159,1.26014606,3673.6,3673.5,2.72219]
[1732991762674,1.48084542,3673.6,3673.1,2.72249]
[1732991762849,0.55,3673.4,3673.3,2.72231]
[1732991763180,0.25413691,3673.4,3673.3,2.72234]
[1732991763339,0.30469392,3673.4,3673.3,2.72234]
[1732991763679,0.05055701,3673.4,3673.3,5.32857076]
[1732991763882,0.54083939,3673.7,3673.6,2.72212]
[1732991764179,1.3445005,3673.7,3673.6,2.72212]
[1732991764371,1.38886155,3673.7,3673.6,2.72212]
[1732991764778,0.83886155,3673.7,3673.6,2.72212]
[1732991764946,0.58520044,3673.7,3673.6,3.20085217]
[1732991765280,0.54083939,3673.7,3673.6,3.20085217]
[1732991765485,0.40580013,3674.1,3674.0,2.72182]
[1732991765635,0.65944454,3674.1,3674.0,2.72182]
[1732991766343,0.65944454,3674.1,3673.8,2.72197]
[1732991766344,0.55,3674.0,3673.8,2.72197]
[1732991766537,0.55,3673.8,3673.6,2.72207]
[1732991766783,0.55,3673.8,3673.5,2.74940903]
[1732991766940,0.55,3674.0,3673.8,2.72196]
[1732991767279,0.80369404,3673.9,3673.8,2.72196]
[1732991767484,0.25369404,3673.9,3673.8,3.51766]
[1732991768675,0.25374366,3673.9,3673.8,3.51766]
[1732991769188,0.29157438,3673.9,3673.8,2.72196]
[1732991769884,0.29156479,3673.9,3673.8,2.72196]
[1732991770250,0.03783072,3673.9,3673.8,2.72196]
[1732991770452,0.03785043,3673.9,3673.8,3.23020276]
[1732991770688,0.55,3674.3,3674.2,2.72167]
[1732991770871,1.24648734,3674.3,3674.2,2.72167]
[1732991771187,0.84053877,3674.3,3674.0,2.72178]
[1732991771387,0.25374214,3674.2,3674.0,2.72178]
[1732991771584,0.25374214,3674.1,3674.0,2.72178]
[1732991771793,0.29043474,3674.1,3674.0,2.72178]
[1732991771943,0.0366926,3674.1,3674.0,2.72178]
[1732991772287,0.25375161,3674.1,3674.0,2.72178]
[1732991772488,0.29044421,3674.1,3674.0,2.72178]
[1732991772789,0.55,3674.0,3673.9,2.72185]
[1732991772959,0.80375161,3674.0,3673.4,2.60623076]
[1732991773162,0.55,3673.7,3673.2,5.72241]
[1732991773376,0.55,3673.7,3673.1,0.7957]
[1732991773377,0.55,3673.5,3673.1,3.7957]
[1732991773688,0.55,3673.5,3673.1,3.0]
[1732991773689,0.55,3673.3,3673.1,3.0]
[1732991773852,0.03626958,3673.2,3673.1,3.0]
[1732991774181,0.55,3673.6,3673.1,3.0]
[1732991774388,0.03626958,3673.2,3673.1,3.0]
[1732991774684,0.03626958,3673.2,3673.1,4.18472008]
[1732991774883,3.27215,3673.6,3673.1,4.18472008]
[1732991775128,0.55,3673.4,3673.1,3.0]
[1732991775585,0.03632162,3673.3,3673.1,5.74970172]
[1732991775794,0.95641197,3673.7,3673.1,5.74970172]
[1732991775946,0.95641197,3673.7,3673.1,5.72248]
[1732991775947,0.25399987,3673.6,3673.1,5.72248]
[1732991776285,0.80399987,3673.5,3673.1,5.74970151]
[1732991776589,0.55,3673.3,3673.1,6.93713574]
[1732991776787,0.55,3673.3,3673.1,6.90991423]
[1732991776993,0.03626958,3673.2,3673.1,6.90991423]
[1732991777783,0.55,3673.6,3673.1,6.90991423]
[1732991777985,0.03622431,3673.2,3673.1,6.90991423]
[1732991778187,0.55,3673.6,3673.1,6.90991423]
[1732991778491,0.55,3673.4,3673.1,6.90991423]
[1732991778699,0.03627635,3673.3,3673.1,6.90991423]
[1732991778911,0.55,3673.6,3673.2,0.9516145]
[1732991779070,0.29040818,3673.5,3673.2,0.9516145]
[1732991779269,0.55,3673.4,3673.2,0.9516145]
[1732991779593,0.58627635,3673.3,3673.1,3.0]
[1732991779795,0.03627635,3673.3,3673.1,3.0]
[1732991781792,0.03627635,3673.3,3673.2,5.72242]
[1732991782005,0.03627635,3673.3,3673.2,6.57554184]
[1732991782177,0.53445092,3673.6,3673.5,2.72219]
[1732991782502,0.78860251,3673.6,3673.5,3.649227]
[1732991782705,3.85771735,3674.3,3673.5,0.927037]
[1732991783010,0.54447221,3673.8,3673.5,3.649227]
[1732991783174,0.25414413,3673.7,3673.5,3.649227]
[1732991783374,0.25414413,3673.6,3673.5,3.649227]
[1732991784070,0.29058343,3673.6,3673.5,3.649227]
[1732991787081,0.54447221,3673.8,3673.7,2.72205]
[1732991787287,0.8352384,3673.8,3673.7,2.74926666]
[1732991788596,0.8352384,3673.8,3673.7,2.72205]
[1732991792001,0.79867367,3673.8,3673.7,2.72205]
[1732991792324,0.83381448,3673.8,3673.7,2.72205]
[1732991792490,0.83381448,3673.8,3673.7,3.76420535]
[1732991793740,0.57961302,3673.8,3673.7,3.76420535]
[1732991794418,0.57961302,3673.8,3673.7,7.60992135]
[1732991794747,0.54447221,3673.8,3673.7,7.58270535]
[1732991795852,0.57716889,3673.8,3673.7,7.58270535]
[1732991798418,0.57716889,3673.8,3673.6,0.62554578]
[1732991798746,0.57716889,3673.8,3673.3,3.55041]
[1732991798747,0.2541491,3673.7,3673.3,3.55041]
[1732991798956,0.2541491,3673.6,3673.3,3.55041]
[1732991799250,0.03260294,3673.6,3673.3,3.55041]
[1732991799648,0.0325509,3673.5,3673.4,2.72226]
[1732991799942,0.54447221,3673.8,3673.4,3.34954]
[1732991800124,0.0325509,3673.5,3673.4,2.72226]
[1732991800318,0.54447221,3673.8,3673.4,2.72226]
[1732991800521,0.28679861,3673.7,3673.4,2.72226]
[1732991800719,0.25414363,3673.6,3673.4,2.72226]
[1732991800920,0.54447221,3673.8,3673.4,2.72226]
[1732991800921,0.0325509,3673.5,3673.4,2.72226]
[1732991801141,0.54447221,3673.8,3673.4,3.5836637]
[1732991801316,0.0325509,3673.5,3673.4,3.5836637]
[1732991801517,0.54447221,3673.8,3673.4,3.5836637]
[1732991801838,0.28680592,3673.7,3673.4,3.5836637]
[1732991802026,0.03265498,3673.7,3673.4,3.5836637]
[1732991802208,0.54447221,3673.8,3673.4,3.5836637]
[1732991802411,0.2541587,3673.7,3673.4,3.5836637]
[1732991802612,0.03265498,3673.7,3673.6,2.72212]
[1732991802836,0.54447221,3673.8,3673.7,2.72205]
[1732991803012,0.57717922,3673.8,3673.7,2.72205]
[1732991803207,0.57717922,3673.8,3673.7,3.55015]
[1732991803614,0.57717922,3673.8,3673.7,6.55015]
[1732991803858,0.03270701,3673.8,3673.7,6.55015]
[1732991804026,0.40668041,3674.3,3674.0,2.72176]
[1732991804027,0.55,3674.3,3674.0,2.72176]
[1732991804224,0.25416766,3674.2,3674.0,2.72176]
[1732991804436,0.25416766,3674.1,3674.0,2.72176]
[1732991804817,0.03179321,3674.1,3674.0,2.72176]
[1732991805650,0.95660826,3674.5,3674.0,2.72176]
[1732991805817,0.55,3674.3,3674.0,2.72176]
[1732991806148,0.28597547,3674.2,3674.0,3.11893133]
[1732991806336,0.03184523,3674.2,3674.0,3.11893133]
[1732991806538,0.55,3674.4,3674.0,3.11893133]
[1732991806756,0.28495884,3674.3,3673.8,5.72192]
[1732991806916,0.53323603,3674.1,3673.8,5.72192]
[1732991807120,0.0306844,3674.0,3673.8,5.72192]
[1732991807320,0.5806844,3674.0,3673.8,5.72192]
[1732991807843,0.5806844,3674.0,3673.9,2.7219]
[1732991808450,0.83481468,3674.0,3673.9,2.7219]
[1732991809154,0.83481468,3674.0,3673.8,3.0]
[1732991809316,0.5806844,3674.0,3673.8,2.72196]
[1732991810046,0.5806844,3674.0,3673.8,3.33532538]
[1732991810759,0.5806844,3674.0,3673.8,3.61336538]
[1732991810929,0.5806844,3674.0,3673.7,4.27928834]
[1732991811651,0.5806844,3674.0,3673.7,4.00132834]
[1732991812153,0.5806844,3674.0,3673.8,3.0]
[1732991812359,0.5806844,3674.0,3673.9,2.7219]
[1732991812556,0.5806844,3674.0,3673.8,3.0]
[1732991813551,0.5806844,3674.0,3673.8,5.72195]
[1732991814256,0.5806844,3674.0,3673.7,1.27928834]
[1732991814466,0.5806844,3674.0,3673.9,2.7219]
[1732991814623,0.83487407,3674.0,3673.9,2.7219]
[1732991815464,0.83487407,3674.0,3673.9,3.4873]
[1732991815659,0.5806844,3674.0,3673.9,3.4873]
[1732991815846,0.83489232,3674.0,3673.9,2.7219]
[1732991816737,0.2848662,3674.0,3673.9,2.7219]
[1732991816972,0.2848662,3674.0,3673.9,3.25230014]
[1732991818054,0.2848662,3674.0,3673.7,3.77840073]
[1732991818237,0.25417238,3673.9,3673.8,2.72197]
[1732991818440,0.28384539,3673.9,3673.8,2.72197]
[1732991818668,0.28384539,3673.9,3673.6,5.72207]
[1732991818972,0.25416657,3673.8,3673.6,3.0]
[1732991819273,0.53323603,3674.1,3673.8,3.52507]
[1732991819564,0.53323603,3674.1,3674.0,2.72182]
[1732991819776,0.78739288,3674.1,3674.0,2.72182]
[1732991820627,0.25415685,3674.1,3674.0,3.77818073]
[1732991821166,1.96113162,3674.6,3674.3,2.72158]
[1732991821470,0.55,3674.4,3674.3,2.72158]
[1732991821641,0.80412401,3674.4,3674.3,2.72158]
[1732991821966,1.21070844,3674.4,3674.1,2.74896416]
[1732991822274,0.25412401,3674.3,3674.1,2.74896416]
[1732991822467,0.25412401,3674.2,3674.1,2.72175]
[1732991822662,0.28399075,3674.2,3674.1,2.72175]
[1732991823572,0.02986674,3674.2,3674.1,2.72175]
[1732991823873,0.25410273,3674.2,3674.1,2.72175]
[1732991824072,0.28398919,3674.2,3674.1,2.72175]
[1732991824632,0.28398919,3674.2,3674.1,6.47927536]
[1732991824861,0.28398919,3674.2,3674.1,7.25516007]
[1732991824862,0.02988646,3674.2,3674.1,7.25516007]
[1732991825044,0.94274686,3674.6,3674.1,4.53341007]
[1732991825260,0.53622572,3674.6,3674.5,2.72145]
[1732991825460,2.13755536,3674.6,3674.5,2.72145]
[1732991825631,2.16764985,3674.6,3674.5,2.72145]
[1732991825971,2.16764985,3674.6,3674.3,1.05636073]
[1732991826150,0.25405665,3674.5,3674.3,1.05636073]
[1732991826464,0.28404713,3674.4,3674.3,1.88751881]
[1732991826633,0.28400107,3674.4,3674.3,1.88751881]
[1732991828269,0.02999048,3674.4,3674.3,4.60911881]
[1732991828576,0.40631992,3674.9,3674.3,4.60911881]
[1732991828748,0.2539509,3674.8,3674.7,1.05636073]
[1732991828933,0.28395082,3674.8,3674.7,1.05636073]
[1732991829571,0.02999992,3674.8,3674.7,1.05636073]
[1732991829945,0.95625481,3675.1,3674.7,1.05636073]
[1732991830135,0.25390979,3675.0,3674.7,1.05636073]
[1732991830335,0.25390979,3674.9,3674.7,1.82149038]
[1732991830536,0.53782702,3674.8,3674.7,1.82149038]
[1732991831238,0.55,3675.1,3674.7,1.82149038]
[1732991831452,0.55,3675.1,3675.0,1.05636073]
[1732991831788,0.80382752,3675.1,3675.0,1.05636073]
[1732991832158,0.25382752,3675.1,3675.0,1.23850977]
[1732991832359,0.40625481,3675.7,3675.1,0.8031]
[1732991832679,0.25375723,3675.6,3675.2,1.05636073]
[1732991832839,0.53158333,3675.4,3675.1,0.8031]
[1732991833040,0.03036527,3675.3,3675.1,0.8031]
[1732991833982,0.03036527,3675.3,3675.1,3.45632297]
[1732991834284,0.25369094,3675.6,3675.1,3.45632297]
[1732991834468,0.03046925,3675.5,3675.1,3.45632297]
[1732991834672,3.27049,3675.8,3675.1,3.45632297]
[1732991834872,0.55,3675.6,3675.1,3.45632297]
[1732991835046,0.03046925,3675.5,3675.1,3.45632297]
[1732991835446,0.25350932,3675.6,3675.1,3.45632297]
[1732991835641,0.55,3675.7,3675.1,3.45632297]
[1732991835846,2.72074,3675.5,3675.2,0.6177413]
[1732991836088,2.75123726,3675.4,3674.6,0.783]
[1732991836286,0.55,3675.3,3674.7,0.02720768]
[1732991836785,0.03031328,3675.2,3674.6,3.783]
[1732991837293,2.75130328,3675.2,3674.6,3.0]
[1732991837443,0.03031328,3675.2,3674.1,3.12201179]
[1732991837780,0.55,3674.9,3674.1,3.70640997]
[1732991837983,2.72129,3674.8,3674.1,3.70640997]
[1732991838184,2.72143,3674.6,3674.1,3.70640997]
[1732991838593,0.02994387,3674.5,3674.1,0.58439818]
[1732991838808,2.72168,3674.2,3673.7,3.12201179]
[1732991839095,0.02972025,3674.1,3673.7,3.12201179]
[1732991839989,0.02972025,3674.1,3673.3,2.72229]
[1732991839990,2.72189,3674.0,3673.4,0.783]
[1732991840205,3.30148025,3674.1,3673.4,0.783]
[1732991840378,0.55,3673.6,3672.9,2.33901179]
[1732991840565,2.7222,3673.5,3672.9,3.12201179]
[1732991840767,2.75157955,3673.5,3672.9,3.12201179]
[1732991840956,0.02937955,3673.5,3672.9,3.12201179]
[1732991841560,0.02937955,3673.5,3673.4,2.33901179]
[1732991841755,0.25330393,3674.1,3673.6,3.0]
[1732991841962,0.02952399,3674.0,3673.6,2.72212]
[1732991842161,0.02952399,3674.0,3673.7,3.0]
[1732991842890,0.53221959,3674.3,3673.7,3.0]
[1732991843125,0.02863272,3674.2,3673.7,3.0]
[1732991843329,0.02863272,3674.2,3673.8,0.572212]
[1732991843505,0.53221959,3674.3,3673.8,0.572212]
[1732991843701,0.02863272,3674.2,3673.8,0.572212]
[1732991844039,0.53221959,3674.3,3673.8,0.572212]
[1732991844233,0.02858847,3674.1,3673.8,0.572212]
[1732991844408,0.0286405,3674.2,3673.8,0.572212]
[1732991844728,0.53221959,3674.3,3673.8,0.572212]
[1732991844927,0.0286405,3674.2,3673.8,0.572212]
[1732991845132,0.53221959,3674.3,3673.8,0.572212]
[1732991845304,0.0286405,3674.2,3673.8,0.572212]
[1732991845496,0.78555359,3674.3,3673.4,4.01690118]
[1732991845692,0.0286405,3674.2,3673.4,4.01690118]
[1732991846232,0.0286405,3674.2,3673.5,2.72214]
[1732991846435,0.0286405,3674.2,3673.6,2.72211]
[1732991846747,0.0286405,3674.2,3673.7,3.67390112]
[1732991849501,0.0286405,3674.2,3673.8,0.02721514]
[1732991849698,0.53221959,3674.3,3673.8,2.74916514]
[1732991850045,0.02863531,3674.2,3673.8,2.74916514]
[1732991850380,0.53221959,3674.3,3673.8,2.74916514]
[1732991850560,0.02858588,3674.1,3673.8,2.74916514]
[1732991850741,0.53221959,3674.3,3673.8,3.66368277]
[1732991850926,0.0286379,3674.2,3673.9,0.752]
[1732991851131,0.0286379,3674.2,3673.8,0.94173277]
[1732991851132,0.53221959,3674.3,3673.8,0.91451763]
[1732991851369,0.0286379,3674.2,3673.7,2.72202]
[1732991854832,3.27176,3674.1,3673.4,3.0]
[1732991855034,0.25333772,3674.0,3673.5,0.02721831]
[1732991855228,0.02823881,3674.0,3673.5,2.72219]
[1732991855748,3.30016961,3673.9,3673.2,6.47441]
[1732991855944,2.72198,3673.8,3673.3,3.0]
[1732991856145,0.57821961,3673.9,3672.9,5.81553769]
[1732991856146,0.55,3673.6,3673.0,3.0]
[1732991856348,0.02801147,3673.5,3673.0,6.87638177]
[1732991856902,0.02801147,3673.5,3673.2,5.7224]
[1732991857188,0.25328891,3674.0,3673.4,2.72227]
[1732991857385,0.55,3674.1,3673.5,2.72216]
[1732991857591,3.52495051,3674.2,3673.4,2.72227]
[1732991857893,0.55,3674.0,3673.6,2.7221]
[1732991858048,0.02816607,3673.9,3673.6,2.7221]
[1732991858787,0.02811404,3673.8,3673.6,2.7221]
[1732991859146,0.55,3674.1,3673.6,2.7221]
[1732991859346,0.0282181,3674.0,3673.6,2.7221]
[1732991860595,0.0282181,3674.0,3673.6,0.6782797]
[1732991860750,0.5782181,3674.0,3673.5,3.48839]
[1732991862292,0.25332126,3673.9,3673.5,0.7662]
[1732991862510,0.02811404,3673.8,3673.4,3.0]
[1732991862827,0.55,3674.0,3673.4,3.0]
[1732991862963,0.028062,3673.7,3673.4,3.0]
[1732991863169,2.72183,3674.0,3673.4,3.0]
[1732991863383,0.55,3673.8,3673.4,3.0]
[1732991863586,0.55,3673.8,3673.1,5.34106349]
[1732991863783,0.028062,3673.7,3673.2,6.72074153]
[1732991864091,0.028062,3673.7,3673.4,3.0]
[1732991864299,0.55,3673.8,3673.4,3.0]
[1732991864457,0.02713733,3673.7,3673.4,3.0]
[1732991864657,0.40572228,3674.2,3673.5,0.7662]
[1732991864959,1.23663716,3674.1,3673.6,2.72212]
[1732991865264,0.25356943,3674.0,3673.8,2.72193]
[1732991865469,0.17018641,3674.6,3673.9,2.7219]
[1732991865791,0.17018641,3674.6,3673.8,2.74914664]
[1732991865792,0.25373217,3674.2,3674.0,2.7490348]
[1732991865993,0.25373217,3674.1,3674.0,3.29613128]
[1732991866308,0.40597491,3674.7,3674.2,2.72168]
[1732991866613,0.78611888,3674.3,3674.2,2.72168]
[1732991868586,0.81361132,3674.3,3674.0,0.54709648]
[1732991868755,0.25389929,3674.2,3674.1,2.72175]
[1732991868959,0.25389929,3674.2,3674.1,3.32081065]
[1732991869176,0.28132874,3674.2,3674.1,3.32081065]
[1732991870228,0.28152986,3674.2,3674.1,3.32081065]
[1732991871191,0.02742945,3674.2,3674.1,3.32081065]
[1732991871529,0.2541047,3674.2,3674.1,3.32081065]
[1732991871679,0.02731482,3674.2,3674.1,3.32081065]
[1732991871883,0.25410389,3674.2,3674.1,3.32081065]
[1732991872222,0.28142015,3674.2,3674.1,3.32081065]
[1732991872897,0.28142015,3674.2,3674.1,4.08701065]
[1732991873236,0.25410533,3674.2,3674.1,7.08701065]
[1732991873584,0.53221959,3674.3,3674.1,7.08701065]
[1732991873779,0.53221959,3674.3,3674.2,3.71919706]
[1732991873985,0.53221959,3674.3,3674.2,6.71919706]
[1732991875483,0.40647575,3674.9,3674.5,2.7214]
[1732991875683,0.68800871,3674.8,3674.5,2.7214]
[1732991875886,0.25402537,3674.7,3674.5,2.7214]
[1732991876187,0.2814324,3674.6,3674.5,2.7214]
[1732991878285,0.2814324,3674.6,3674.5,3.66544971]
[1732991878486,0.28129634,3674.6,3674.5,3.66544971]
[1732991881088,0.02740703,3674.6,3674.5,3.66544971]
[1732991881396,0.25384098,3674.6,3674.5,3.66544971]
[1732991881635,0.25384098,3674.6,3674.2,2.72166]
[1732991881941,0.25384098,3674.5,3674.3,3.0]
[1732991882241,0.02700704,3674.4,3674.3,5.7216]
[1732991882594,0.53977094,3674.8,3674.4,2.72153]
[1732991882935,0.25377539,3674.7,3674.4,2.72153]
[1732991883107,0.2538045,3674.6,3674.4,2.72153]
[1732991883310,0.2538045,3674.5,3674.2,5.72165]
[1732991883526,0.55,3674.7,3674.2,5.72165]
[1732991883704,0.2809211,3674.6,3674.2,3.0]
[1732991883899,0.25381004,3674.5,3674.2,3.0]
[1732991884102,0.02700704,3674.4,3674.2,3.0]
[1732991884302,3.27131,3674.7,3674.2,3.0]
[1732991884303,0.55,3674.7,3674.2,2.72167]
[1732991884505,0.02711106,3674.6,3674.3,3.0]
[1732991884728,0.25380365,3674.5,3674.3,3.0]
[1732991884937,0.02700704,3674.4,3674.3,3.0]
[1732991885243,0.55,3674.7,3674.3,3.0]
[1732991885537,0.2538112,3674.6,3674.0,4.05609763]
[1732991885742,0.28087025,3674.5,3674.2,3.0]
[1732991886042,0.25381406,3674.4,3674.0,4.05609763]
[1732991886343,0.95616197,3674.7,3674.3,5.72156]
[1732991886642,0.25385142,3674.6,3674.3,5.72156]
[1732991886806,0.25385142,3674.5,3674.3,5.72156]
[1732991887005,0.55,3674.7,3674.3,5.74877289]
[1732991887208,0.25385245,3674.6,3674.3,5.74877289]
[1732991887410,0.25385245,3674.5,3674.3,5.74877289]
[1732991887622,0.02711193,3674.6,3674.3,5.74877289]
[1732991887822,0.0270079,3674.4,3674.3,5.74877289]
[1732991888025,0.55,3674.7,3674.3,5.74877289]
[1732991888345,0.25386703,3674.6,3674.3,5.74877289]
[1732991888549,0.28092695,3674.5,3674.3,5.74877289]
[1732991888751,0.02705992,3674.5,3674.3,5.74877289]
[1732991889048,0.9562248,3674.7,3674.3,5.74877289]
[1732991889346,0.25388147,3674.6,3674.3,5.74877289]
[1732991889514,0.25388147,3674.5,3674.3,5.74877289]
[1732991889724,0.02705992,3674.5,3674.3,5.74877289]
[1732991890034,0.55,3674.7,3674.3,5.74877289]
[1732991890345,0.25391717,3674.6,3674.3,5.74877289]
[1732991890523,0.28097709,3674.5,3674.3,5.72156]
[1732991890838,0.02705992,3674.5,3674.3,5.72156]
[1732991891342,0.0270079,3674.4,3674.3,5.72156]